[Event "Early-Titled-Tuesday-Blitz-June-18-2024"]
[Site "Chess.com"]
[Date "2024.06.18"]
[Round "6"]
[White "LaPiToB"]
[Black "LangesNasenhaar"]
[Result "1-0"]
[WhiteElo "2343"]
[BlackElo "2484"]
[TimeControl "180+1"]
[EndTime "9:09:51 PDT"]
[Termination "LaPiToB won by resignation"]

1. c4 {[%clk 0:03:00.9]} 1... b6 {[%clk 0:02:58.4]} 2. Nc3 {[%clk 0:02:58.5]}
2... Bb7 {[%clk 0:02:59.3]} 3. e4 {[%clk 0:02:58.5]} 3... e5 {[%clk 0:02:58]} 4.
d3 {[%clk 0:02:58.4]} 4... Nf6 {[%clk 0:02:58.1]} 5. Nge2 {[%clk 0:02:54.7]}
5... Bc5 {[%clk 0:02:57.8]} 6. h3 {[%clk 0:02:43.1]} 6... Nc6 {[%clk 0:02:56.5]}
7. g3 {[%clk 0:02:41.7]} 7... O-O {[%clk 0:02:51.3]} 8. Bg2 {[%clk 0:02:40.3]}
8... h6 {[%clk 0:02:50.6]} 9. O-O {[%clk 0:02:38.9]} 9... Nd4 {[%clk 0:02:49.2]}
10. Rb1 {[%clk 0:02:28.3]} 10... a5 {[%clk 0:02:48.6]} 11. a3 {[%clk 0:02:24.3]}
11... Qe7 {[%clk 0:02:45.4]} 12. Kh2 {[%clk 0:02:21.3]} 12... c6 {[%clk
0:02:36.6]} 13. f4 {[%clk 0:02:10.8]} 13... exf4 {[%clk 0:02:15.8]} 14. gxf4
{[%clk 0:01:56.5]} 14... Rae8 {[%clk 0:01:56.6]} 15. e5 {[%clk 0:01:44.9]} 15...
Nh7 {[%clk 0:01:39.7]} 16. Ne4 {[%clk 0:01:39]} 16... d5 {[%clk 0:01:26]} 17.
N4g3 {[%clk 0:01:26.3]} 17... Nxe2 {[%clk 0:01:13.6]} 18. Qxe2 {[%clk
0:01:23.4]} 18... dxc4 {[%clk 0:01:12.4]} 19. dxc4 {[%clk 0:01:21.7]} 19... a4
{[%clk 0:01:03.7]} 20. Nf5 {[%clk 0:01:13.1]} 20... Qe6 {[%clk 0:01:00.8]} 21.
Qg4 {[%clk 0:01:09.6]} 21... Qg6 {[%clk 0:01:01]} 22. b4 {[%clk 0:00:43.1]}
22... axb3 {[%clk 0:00:57.2]} 23. Rxb3 {[%clk 0:00:42.5]} 23... Bc8 {[%clk
0:00:31.2]} 24. Qxg6 {[%clk 0:00:38.9]} 24... fxg6 {[%clk 0:00:31.4]} 25. Ng3
{[%clk 0:00:38.3]} 25... Bd7 {[%clk 0:00:27.6]} 26. Be3 {[%clk 0:00:35.5]} 26...
Bxe3 {[%clk 0:00:22.3]} 27. Rxe3 {[%clk 0:00:36.4]} 27... g5 {[%clk 0:00:23]}
28. f5 {[%clk 0:00:33.9]} 28... c5 {[%clk 0:00:16.8]} 29. e6 {[%clk 0:00:33.5]}
29... Ba4 {[%clk 0:00:16.6]} 30. Bd5 {[%clk 0:00:32.6]} 30... Kh8 {[%clk
0:00:15]} 31. Ne4 {[%clk 0:00:28.8]} 31... Nf6 {[%clk 0:00:12]} 32. Nd6 {[%clk
0:00:21.8]} 32... Rb8 {[%clk 0:00:07.8]} 33. e7 {[%clk 0:00:16]} 33... Rfe8
{[%clk 0:00:03.6]} 34. Nxe8 {[%clk 0:00:12]} 34... Bxe8 {[%clk 0:00:03.3]} 35.
Rfe1 {[%clk 0:00:11.2]} 35... Rc8 {[%clk 0:00:02.3]} 36. Re6 {[%clk 0:00:08.4]}
36... Rc7 {[%clk 0:00:02.4]} 37. Rxb6 {[%clk 0:00:08.1]} 37... Kh7 {[%clk
0:00:03.3]} 38. Rb8 {[%clk 0:00:08]} 38... Ra7 {[%clk 0:00:03.7]} 39. Rxe8
{[%clk 0:00:07.3]} 39... Nxe8 {[%clk 0:00:03.5]} 40. Bc6 {[%clk 0:00:06.1]}
40... Nf6 {[%clk 0:00:04.1]} 41. e8=Q {[%clk 0:00:06.2]} 41... Nxe8 {[%clk
0:00:05]} 42. Bxe8 {[%clk 0:00:06.1]} 42... Rxa3 {[%clk 0:00:05.9]} 43. Re7
{[%clk 0:00:04.5]} 43... Kg8 {[%clk 0:00:05.6]} 44. Bg6 {[%clk 0:00:04.6]} 44...
Ra8 {[%clk 0:00:04.6]} 45. Rc7 {[%clk 0:00:04.8]} 45... Ra2+ {[%clk 0:00:03.6]}
46. Kg3 {[%clk 0:00:04.7]} 46... Ra3+ {[%clk 0:00:04.5]} 47. Kg4 {[%clk
0:00:04.7]} 47... Ra8 {[%clk 0:00:05.4]} 48. Rxc5 {[%clk 0:00:04.7]} 48... Rf8
{[%clk 0:00:06.3]} 49. Rc7 {[%clk 0:00:04.9]} 49... Kh8 {[%clk 0:00:06.7]} 50.
c5 {[%clk 0:00:05.4]} 50... Rd8 {[%clk 0:00:07.3]} 51. c6 {[%clk 0:00:05.8]}
51... Rd4+ {[%clk 0:00:07.9]} 52. Kg3 {[%clk 0:00:06.1]} 52... Rd8 {[%clk
0:00:08.8]} 53. Re7 {[%clk 0:00:06]} 53... Rc8 {[%clk 0:00:08.7]} 54. Re8+
{[%clk 0:00:06.4]} 54... Rxe8 {[%clk 0:00:08.3]} 55. Bxe8 {[%clk 0:00:07.3]} 1-0

[Event "Early-Titled-Tuesday-Blitz-June-18-2024"]
[Site "Chess.com"]
[Date "2024.06.18"]
[Round "6"]
[White "Milop27"]
[Black "teresin05"]
[Result "1-0"]
[WhiteElo "2438"]
[BlackElo "2308"]
[TimeControl "180+1"]
[EndTime "9:09:53 PDT"]
[Termination "Milop27 won by resignation"]

1. e4 {[%clk 0:03:00.9]} 1... c5 {[%clk 0:02:57.6]} 2. Nf3 {[%clk 0:03:00.6]}
2... Nc6 {[%clk 0:02:57.4]} 3. Bb5 {[%clk 0:02:59.6]} 3... e6 {[%clk 0:02:55.9]}
4. Bxc6 {[%clk 0:02:59.2]} 4... bxc6 {[%clk 0:02:55.4]} 5. e5 {[%clk 0:02:56.2]}
5... f6 {[%clk 0:02:48.9]} 6. O-O {[%clk 0:02:54.7]} 6... fxe5 {[%clk
0:02:45.7]} 7. Nxe5 {[%clk 0:02:53.6]} 7... Nf6 {[%clk 0:02:44.1]} 8. d4 {[%clk
0:02:51.7]} 8... cxd4 {[%clk 0:02:43]} 9. Qxd4 {[%clk 0:02:51.6]} 9... Be7
{[%clk 0:02:41.2]} 10. Nc3 {[%clk 0:02:51.3]} 10... O-O {[%clk 0:02:40.2]} 11.
Bg5 {[%clk 0:02:48.1]} 11... d5 {[%clk 0:02:30]} 12. Nxc6 {[%clk 0:02:45.2]}
12... Qe8 {[%clk 0:02:17.1]} 13. Nxe7+ {[%clk 0:02:43.9]} 13... Qxe7 {[%clk
0:02:18]} 14. Rfe1 {[%clk 0:02:41]} 14... h6 {[%clk 0:02:01.4]} 15. Nxd5 {[%clk
0:02:34.2]} 15... Qb7 {[%clk 0:01:40.7]} 16. Nxf6+ {[%clk 0:02:30.3]} 16... gxf6
{[%clk 0:01:39.7]} 17. Bxf6 {[%clk 0:02:27.7]} 17... Qf7 {[%clk 0:01:36.8]} 18.
Be5 {[%clk 0:02:20.6]} 18... Bb7 {[%clk 0:01:34.8]} 19. Bg3 {[%clk 0:01:51.2]}
19... Bd5 {[%clk 0:01:19.6]} 20. c4 {[%clk 0:01:48.7]} 20... Bb7 {[%clk
0:01:04.6]} 21. Qg4+ {[%clk 0:01:48.3]} 21... Kh7 {[%clk 0:01:03]} 22. Qxe6
{[%clk 0:01:46.6]} 22... Rac8 {[%clk 0:00:55.6]} 23. Qxf7+ {[%clk 0:01:44.7]}
23... Rxf7 {[%clk 0:00:56.5]} 24. b3 {[%clk 0:01:44.5]} 24... a5 {[%clk
0:00:48.1]} 25. Rad1 {[%clk 0:01:41.9]} 25... a4 {[%clk 0:00:47.6]} 26. Re3
{[%clk 0:01:40.8]} 26... axb3 {[%clk 0:00:47.3]} 27. axb3 {[%clk 0:01:40.9]}
27... Ra8 {[%clk 0:00:44.6]} 28. b4 {[%clk 0:01:34.5]} 28... Ra4 {[%clk
0:00:43]} 29. Rb3 {[%clk 0:01:31.4]} 29... Re7 {[%clk 0:00:39.3]} 30. c5 {[%clk
0:01:15.4]} 30... Bd5 {[%clk 0:00:29]} 31. Rb2 {[%clk 0:01:11.9]} 31... Rb7
{[%clk 0:00:20.6]} 32. b5 {[%clk 0:01:06]} 32... Ra5 {[%clk 0:00:20.8]} 33. h4
{[%clk 0:01:04.7]} 33... Bc4 {[%clk 0:00:16.6]} 34. c6 {[%clk 0:00:57.4]} 34...
Rbxb5 {[%clk 0:00:16.6]} 35. Rxb5 {[%clk 0:00:53.9]} 35... Rxb5 {[%clk
0:00:17.5]} 36. Rd7+ {[%clk 0:00:49.5]} 36... Kg6 {[%clk 0:00:17.1]} 37. c7
{[%clk 0:00:44.9]} 37... Rc5 {[%clk 0:00:17.4]} 38. Kh2 {[%clk 0:00:43.7]} 38...
Be6 {[%clk 0:00:17.3]} 39. Rd6 {[%clk 0:00:43.5]} 39... Kf7 {[%clk 0:00:17.3]}
40. Ra6 {[%clk 0:00:42.2]} 40... Rc2 {[%clk 0:00:15.4]} 41. Bf4 {[%clk
0:00:38.8]} 41... h5 {[%clk 0:00:15.1]} 42. f3 {[%clk 0:00:36.7]} 42... Kf6
{[%clk 0:00:14.9]} 43. Kg3 {[%clk 0:00:34.6]} 43... Rc4 {[%clk 0:00:14.7]} 44.
Bd6 {[%clk 0:00:28.8]} 44... Rc2 {[%clk 0:00:13.4]} 45. Ra5 {[%clk 0:00:25.5]}
45... Kg6 {[%clk 0:00:13]} 46. Rg5+ {[%clk 0:00:24.4]} 46... Kh6 {[%clk
0:00:13]} 47. Bf4 {[%clk 0:00:23.8]} 47... Rc4 {[%clk 0:00:10.4]} 48. Re5+
{[%clk 0:00:20.4]} 48... Kg6 {[%clk 0:00:09.4]} 49. Rxe6+ {[%clk 0:00:19.9]}
49... Kf7 {[%clk 0:00:09.2]} 50. Re4 {[%clk 0:00:19.3]} 50... Rc6 {[%clk
0:00:08.8]} 51. Ra4 {[%clk 0:00:18.1]} 51... Kg7 {[%clk 0:00:08.6]} 52. Ra8
{[%clk 0:00:18]} 52... Kh7 {[%clk 0:00:08.6]} 53. c8=Q {[%clk 0:00:16.2]} 53...
Rg6+ {[%clk 0:00:09.2]} 54. Kh2 {[%clk 0:00:14.2]} 54... Rg7 {[%clk 0:00:10.1]}
55. Qh8+ {[%clk 0:00:12.1]} 55... Kg6 {[%clk 0:00:10.6]} 56. Qh6+ {[%clk
0:00:12]} 56... Kf7 {[%clk 0:00:10.4]} 57. Ra7+ {[%clk 0:00:11.6]} 1-0

[Event "Early-Titled-Tuesday-Blitz-June-18-2024"]
[Site "Chess.com"]
[Date "2024.06.18"]
[Round "6"]
[White "Rile-Man"]
[Black "luckyswitchback"]
[Result "0-1"]
[WhiteElo "2535"]
[BlackElo "2843"]
[TimeControl "180+1"]
[EndTime "9:09:56 PDT"]
[Termination "luckyswitchback won by resignation"]

1. d4 {[%clk 0:03:00.9]} 1... d5 {[%clk 0:02:58.2]} 2. Bf4 {[%clk 0:02:58.2]}
2... Nf6 {[%clk 0:02:57.9]} 3. e3 {[%clk 0:02:57.3]} 3... c5 {[%clk 0:02:57.8]}
4. Nf3 {[%clk 0:02:56.2]} 4... cxd4 {[%clk 0:02:56.5]} 5. exd4 {[%clk
0:02:56.3]} 5... Nc6 {[%clk 0:02:56.5]} 6. c3 {[%clk 0:02:54.8]} 6... Bg4 {[%clk
0:02:56.1]} 7. Nbd2 {[%clk 0:02:53.9]} 7... e6 {[%clk 0:02:55.2]} 8. Qa4 {[%clk
0:02:53.2]} 8... Bxf3 {[%clk 0:02:43.8]} 9. Nxf3 {[%clk 0:02:54.1]} 9... Bd6
{[%clk 0:02:44.4]} 10. Ba6 {[%clk 0:02:49.6]} 10... Bxf4 {[%clk 0:02:16.9]} 11.
Bxb7 {[%clk 0:02:49.1]} 11... O-O {[%clk 0:02:16.8]} 12. Bxc6 {[%clk 0:02:41.5]}
12... Rb8 {[%clk 0:02:15.4]} 13. b4 {[%clk 0:02:39.6]} 13... Ne4 {[%clk
0:02:07.8]} 14. Qc2 {[%clk 0:02:31.8]} 14... Rc8 {[%clk 0:01:45.2]} 15. b5
{[%clk 0:02:30]} 15... Qa5 {[%clk 0:01:44.1]} 16. O-O {[%clk 0:02:28.4]} 16...
Nxc3 {[%clk 0:01:41]} 17. a4 {[%clk 0:02:19.1]} 17... h6 {[%clk 0:01:27.4]} 18.
g3 {[%clk 0:02:14.3]} 18... Bd6 {[%clk 0:01:25.8]} 19. Rfc1 {[%clk 0:02:12.1]}
19... Ne4 {[%clk 0:01:24.3]} 20. Qd3 {[%clk 0:02:05.8]} 20... Rc7 {[%clk
0:01:20]} 21. Ne5 {[%clk 0:01:56.5]} 21... Bxe5 {[%clk 0:01:05.3]} 22. dxe5
{[%clk 0:01:57.4]} 22... Nd2 {[%clk 0:01:02.3]} 23. f4 {[%clk 0:01:40.6]} 23...
Qb6+ {[%clk 0:00:54.7]} 24. Kg2 {[%clk 0:01:39.5]} 24... Nc4 {[%clk 0:00:55.3]}
25. Rc3 {[%clk 0:01:30.7]} 25... Rfc8 {[%clk 0:00:50.6]} 26. Qf3 {[%clk
0:01:25.9]} 26... Na5 {[%clk 0:00:45.4]} 27. Qf2 {[%clk 0:01:00.6]} 27... d4
{[%clk 0:00:26.8]} 28. Rd3 {[%clk 0:00:51.4]} 28... Nxc6 {[%clk 0:00:26.5]} 29.
bxc6 {[%clk 0:00:50.8]} 29... Rxc6 {[%clk 0:00:22.4]} 30. Qxd4 {[%clk 0:00:48]}
30... Rc2+ {[%clk 0:00:22.5]} 31. Kh3 {[%clk 0:00:48.1]} 31... Qb7 {[%clk
0:00:21.5]} 32. Rd2 {[%clk 0:00:42.8]} 32... Qf3 {[%clk 0:00:16.7]} 33. Rad1
{[%clk 0:00:24.1]} 33... h5 {[%clk 0:00:13.2]} 34. Qd3 {[%clk 0:00:18]} 34...
Qg4+ {[%clk 0:00:08.1]} 35. Kg2 {[%clk 0:00:18.4]} 35... R2c3 {[%clk 0:00:08.8]}
36. Qe2 {[%clk 0:00:17.2]} 36... Qg6 {[%clk 0:00:07]} 37. Rd8+ {[%clk
0:00:16.7]} 37... Rxd8 {[%clk 0:00:05.9]} 38. Rxd8+ {[%clk 0:00:17.6]} 38... Kh7
{[%clk 0:00:06.4]} 39. Rd2 {[%clk 0:00:18.1]} 39... h4 {[%clk 0:00:06.1]} 40.
Qf2 {[%clk 0:00:08.1]} 40... Qg4 {[%clk 0:00:06.4]} 41. Ra2 {[%clk 0:00:04.8]}
41... h3+ {[%clk 0:00:06.3]} 42. Kf1 {[%clk 0:00:02.5]} 42... Rc1+ {[%clk
0:00:07.2]} 43. Qe1 {[%clk 0:00:03.4]} 43... Rxe1+ {[%clk 0:00:06.8]} 44. Kxe1
{[%clk 0:00:03.5]} 44... Qf3 {[%clk 0:00:07.5]} 45. Rf2 {[%clk 0:00:03.8]} 45...
Qe4+ {[%clk 0:00:07.3]} 46. Re2 {[%clk 0:00:04.7]} 46... Qxa4 {[%clk 0:00:08.2]}
47. Kf2 {[%clk 0:00:05.5]} 47... Qd4+ {[%clk 0:00:08.2]} 48. Kf3 {[%clk
0:00:05.7]} 48... a5 {[%clk 0:00:08.4]} 49. Kg4 {[%clk 0:00:06]} 49... Qd1
{[%clk 0:00:08.5]} 50. Kf3 {[%clk 0:00:05.7]} 50... a4 {[%clk 0:00:09]} 51. Ke3
{[%clk 0:00:05.3]} 51... Qxe2+ {[%clk 0:00:09.4]} 52. Kxe2 {[%clk 0:00:06.1]}
52... a3 {[%clk 0:00:10.3]} 53. f5 {[%clk 0:00:06.8]} 53... a2 {[%clk 0:00:10]}
54. Kf3 {[%clk 0:00:07.7]} 54... a1=Q {[%clk 0:00:10.2]} 0-1

[Event "Early-Titled-Tuesday-Blitz-June-18-2024"]
[Site "Chess.com"]
[Date "2024.06.18"]
[Round "6"]
[White "ural58"]
[Black "Kostukov_Alex"]
[Result "0-1"]
[WhiteElo "2413"]
[BlackElo "2320"]
[TimeControl "180+1"]
[EndTime "9:09:57 PDT"]
[Termination "Kostukov_Alex won on time"]

1. e4 {[%clk 0:03:00.9]} 1... c5 {[%clk 0:02:58.4]} 2. b3 {[%clk 0:02:59.8]}
2... g6 {[%clk 0:02:56.5]} 3. Bb2 {[%clk 0:02:59.1]} 3... Nf6 {[%clk 0:02:56.6]}
4. e5 {[%clk 0:02:58.9]} 4... Nd5 {[%clk 0:02:56.6]} 5. Nc3 {[%clk 0:02:58.8]}
5... Nxc3 {[%clk 0:02:56.5]} 6. Bxc3 {[%clk 0:02:59.4]} 6... Bg7 {[%clk
0:02:56.5]} 7. h4 {[%clk 0:02:59.7]} 7... d5 {[%clk 0:02:50.4]} 8. exd6 {[%clk
0:02:53.6]} 8... Bxc3 {[%clk 0:02:45.5]} 9. dxc3 {[%clk 0:00:56.8]} 9... Qxd6
{[%clk 0:02:34]} 10. Qxd6 {[%clk 0:00:41]} 10... exd6 {[%clk 0:02:34.9]} 11.
O-O-O {[%clk 0:00:40.9]} 11... Ke7 {[%clk 0:02:34.5]} 12. h5 {[%clk 0:00:39.3]}
12... g5 {[%clk 0:02:31.8]} 13. Nf3 {[%clk 0:00:37.9]} 13... h6 {[%clk
0:02:31.1]} 14. Bc4 {[%clk 0:00:36.7]} 14... Be6 {[%clk 0:02:26.1]} 15. Rhe1
{[%clk 0:00:36.4]} 15... Nc6 {[%clk 0:02:19.2]} 16. Nd2 {[%clk 0:00:35.1]} 16...
Rad8 {[%clk 0:01:59.2]} 17. Bxe6 {[%clk 0:00:32.5]} 17... fxe6 {[%clk
0:01:58.6]} 18. Re3 {[%clk 0:00:31.4]} 18... Rhf8 {[%clk 0:01:53.4]} 19. f3
{[%clk 0:00:30.9]} 19... Rf6 {[%clk 0:01:51.2]} 20. Rde1 {[%clk 0:00:27.7]}
20... d5 {[%clk 0:01:48.4]} 21. c4 {[%clk 0:00:21.7]} 21... Kf7 {[%clk
0:01:40.1]} 22. cxd5 {[%clk 0:00:16.8]} 22... exd5 {[%clk 0:01:41]} 23. c3
{[%clk 0:00:14.6]} 23... Rd7 {[%clk 0:01:32]} 24. Nf1 {[%clk 0:00:14.3]} 24...
d4 {[%clk 0:01:23.4]} 25. cxd4 {[%clk 0:00:13.8]} 25... Nxd4 {[%clk 0:01:24]}
26. Ng3 {[%clk 0:00:13.4]} 26... Nf5 {[%clk 0:01:16.9]} 27. Nxf5 {[%clk
0:00:13]} 27... Rxf5 {[%clk 0:01:17.8]} 28. Kc2 {[%clk 0:00:12.8]} 28... Rfd5
{[%clk 0:01:16.9]} 29. R1e2 {[%clk 0:00:13.4]} 29... b6 {[%clk 0:01:16.1]} 30.
a3 {[%clk 0:00:12.5]} 30... Rd4 {[%clk 0:01:14.8]} 31. Re4 {[%clk 0:00:10.7]}
31... Rd1 {[%clk 0:01:08.6]} 32. f4 {[%clk 0:00:08.6]} 32... g4 {[%clk
0:01:08.6]} 33. f5 {[%clk 0:00:05.9]} 33... R1d4 {[%clk 0:01:07.8]} 34. Rxd4
{[%clk 0:00:06]} 34... Rxd4 {[%clk 0:01:06.9]} 35. Re6 {[%clk 0:00:06.6]} 35...
Rf4 {[%clk 0:01:03.1]} 36. Rxh6 {[%clk 0:00:06.5]} 36... Rxf5 {[%clk 0:01:03.3]}
37. Rh7+ {[%clk 0:00:06.7]} 37... Kf6 {[%clk 0:01:02.6]} 38. Rxa7 {[%clk
0:00:07.6]} 38... Rxh5 {[%clk 0:00:59.4]} 39. Rb7 {[%clk 0:00:07.1]} 39... Rh2
{[%clk 0:00:59.7]} 40. Rxb6+ {[%clk 0:00:06.4]} 40... Ke5 {[%clk 0:01:00.2]} 41.
Rg6 {[%clk 0:00:05.2]} 41... Rxg2+ {[%clk 0:00:59]} 42. Kc3 {[%clk 0:00:05.8]}
42... Kd5 {[%clk 0:00:56.8]} 43. Rg5+ {[%clk 0:00:05.8]} 43... Kc6 {[%clk
0:00:55.9]} 44. a4 {[%clk 0:00:06.1]} 44... Rg1 {[%clk 0:00:51.3]} 45. Rg6+
{[%clk 0:00:05.9]} 45... Kd5 {[%clk 0:00:51.5]} 46. Rg5+ {[%clk 0:00:06.2]}
46... Kd6 {[%clk 0:00:48]} 47. Rg6+ {[%clk 0:00:06.1]} 47... Kd5 {[%clk
0:00:44.1]} 48. Rg5+ {[%clk 0:00:05]} 48... Kc6 {[%clk 0:00:35.6]} 49. Rg6+
{[%clk 0:00:05.1]} 49... Kb7 {[%clk 0:00:35.6]} 50. Rg5 {[%clk 0:00:06]} 50...
g3 {[%clk 0:00:33.7]} 51. Kc4 {[%clk 0:00:05.8]} 51... Rc1+ {[%clk 0:00:27.5]}
52. Kb5 {[%clk 0:00:06.7]} 52... Rc3 {[%clk 0:00:27.2]} 53. b4 {[%clk
0:00:05.3]} 53... cxb4 {[%clk 0:00:24.4]} 54. Kxb4 {[%clk 0:00:06.2]} 54... Rf3
{[%clk 0:00:24.1]} 55. a5 {[%clk 0:00:06.6]} 55... Ka7 {[%clk 0:00:20.2]} 56.
Rg7+ {[%clk 0:00:06.6]} 56... Ka6 {[%clk 0:00:20]} 0-1

[Event "Early-Titled-Tuesday-Blitz-June-18-2024"]
[Site "Chess.com"]
[Date "2024.06.18"]
[Round "6"]
[White "maximnovik"]
[Black "KogotBobra17"]
[Result "1-0"]
[WhiteElo "2554"]
[BlackElo "2657"]
[TimeControl "180+1"]
[EndTime "9:09:58 PDT"]
[Termination "maximnovik won by checkmate"]

1. e4 {[%clk 0:02:59.3]} 1... c5 {[%clk 0:03:00]} 2. Nf3 {[%clk 0:02:59.3]} 2...
Nc6 {[%clk 0:03:00.6]} 3. Bb5 {[%clk 0:02:59]} 3... g5 {[%clk 0:03:01.2]} 4.
Bxc6 {[%clk 0:02:51.9]} 4... dxc6 {[%clk 0:03:02.1]} 5. Nxg5 {[%clk 0:02:41]}
5... Nf6 {[%clk 0:03:02.3]} 6. d3 {[%clk 0:02:40.5]} 6... Rg8 {[%clk 0:03:02.2]}
7. Rg1 {[%clk 0:02:10.4]} 7... c4 {[%clk 0:02:27.6]} 8. Nc3 {[%clk 0:02:01.3]}
8... Qa5 {[%clk 0:01:47.8]} 9. Bd2 {[%clk 0:01:42.7]} 9... cxd3 {[%clk
0:01:20.8]} 10. Nf3 {[%clk 0:01:34.3]} 10... Bg4 {[%clk 0:01:09.6]} 11. cxd3
{[%clk 0:01:30.4]} 11... Qh5 {[%clk 0:01:07.5]} 12. Kf1 {[%clk 0:00:35.2]} 12...
O-O-O {[%clk 0:01:05.6]} 13. Be3 {[%clk 0:00:20.2]} 13... e6 {[%clk 0:00:41.1]}
14. h3 {[%clk 0:00:20.4]} 14... Bxf3 {[%clk 0:00:38.3]} 15. Qxf3 {[%clk
0:00:20.4]} 15... Qxf3 {[%clk 0:00:38.7]} 16. gxf3 {[%clk 0:00:20.8]} 16...
Rxg1+ {[%clk 0:00:39.2]} 17. Kxg1 {[%clk 0:00:21.1]} 17... Rxd3 {[%clk
0:00:39.8]} 18. Kf1 {[%clk 0:00:21.6]} 18... b6 {[%clk 0:00:37.5]} 19. Ke2
{[%clk 0:00:22.1]} 19... Rd7 {[%clk 0:00:37.8]} 20. Rg1 {[%clk 0:00:21.6]} 20...
Kb7 {[%clk 0:00:34.5]} 21. e5 {[%clk 0:00:21.1]} 21... Nd5 {[%clk 0:00:33.5]}
22. Ne4 {[%clk 0:00:21.3]} 22... Ne7 {[%clk 0:00:09.6]} 23. Nf6 {[%clk
0:00:19.5]} 23... Rd8 {[%clk 0:00:07.1]} 24. Nxh7 {[%clk 0:00:19.9]} 24... Ng6
{[%clk 0:00:07.7]} 25. f4 {[%clk 0:00:18.7]} 25... Bb4 {[%clk 0:00:06.6]} 26.
Ng5 {[%clk 0:00:18]} 26... Nh8 {[%clk 0:00:05.5]} 27. Rg4 {[%clk 0:00:17.2]}
27... c5 {[%clk 0:00:05.2]} 28. Rh4 {[%clk 0:00:16.8]} 28... Kc6 {[%clk
0:00:04.6]} 29. Rh7 {[%clk 0:00:17]} 29... Rf8 {[%clk 0:00:05.5]} 30. Ne4 {[%clk
0:00:16.8]} 30... Ng6 {[%clk 0:00:05.2]} 31. h4 {[%clk 0:00:16.7]} 31... Ne7
{[%clk 0:00:04.4]} 32. Ng5 {[%clk 0:00:16.6]} 32... Nf5 {[%clk 0:00:03.6]} 33.
h5 {[%clk 0:00:16.2]} 33... c4 {[%clk 0:00:01]} 34. Rxf7 {[%clk 0:00:15.4]}
34... Rg8 {[%clk 0:00:01.1]} 35. Rf6 {[%clk 0:00:15]} 35... Kd7 {[%clk
0:00:01.3]} 36. h6 {[%clk 0:00:14.6]} 36... Rh8 {[%clk 0:00:01.3]} 37. h7 {[%clk
0:00:14.8]} 37... c3 {[%clk 0:00:01.1]} 38. bxc3 {[%clk 0:00:14.5]} 38... Bxc3
{[%clk 0:00:02]} 39. Rxe6 {[%clk 0:00:13.9]} 39... Ng7 {[%clk 0:00:01.2]} 40.
Rg6 {[%clk 0:00:13.7]} 40... Ne8 {[%clk 0:00:01.7]} 41. Rg8 {[%clk 0:00:13.9]}
41... Bxe5 {[%clk 0:00:01.9]} 42. fxe5 {[%clk 0:00:13.8]} 42... Rxh7 {[%clk
0:00:02.4]} 43. Nxh7 {[%clk 0:00:13.7]} 43... Nc7 {[%clk 0:00:03]} 44. Rg7+
{[%clk 0:00:14]} 44... Kc6 {[%clk 0:00:03.6]} 45. Rxc7+ {[%clk 0:00:14.9]} 45...
Kxc7 {[%clk 0:00:04]} 46. f4 {[%clk 0:00:15.8]} 46... Kd7 {[%clk 0:00:04.5]} 47.
f5 {[%clk 0:00:16.7]} 47... Ke7 {[%clk 0:00:05]} 48. f6+ {[%clk 0:00:17.6]}
48... Kf7 {[%clk 0:00:05.5]} 49. Ng5+ {[%clk 0:00:18.2]} 49... Kg6 {[%clk
0:00:05.7]} 50. f7 {[%clk 0:00:19.1]} 50... Kg7 {[%clk 0:00:06]} 51. e6 {[%clk
0:00:19.7]} 51... Kf8 {[%clk 0:00:06.5]} 52. Bd4 {[%clk 0:00:19.6]} 52... Ke7
{[%clk 0:00:07.1]} 53. Bg7 {[%clk 0:00:19.5]} 53... Kd6 {[%clk 0:00:07.6]} 54.
f8=Q+ {[%clk 0:00:19.7]} 54... Kc6 {[%clk 0:00:08.1]} 55. e7 {[%clk 0:00:20.2]}
55... Kb5 {[%clk 0:00:06.6]} 56. e8=Q+ {[%clk 0:00:20.2]} 56... Ka6 {[%clk
0:00:07.2]} 57. Qa3+ {[%clk 0:00:19.9]} 57... Kb7 {[%clk 0:00:05.7]} 58. Qd7+
{[%clk 0:00:20.3]} 58... Kb8 {[%clk 0:00:06.4]} 59. Be5+ {[%clk 0:00:20.3]}
59... Ka8 {[%clk 0:00:06.4]} 60. Qf3# {[%clk 0:00:20.7]} 1-0